[Event "ETCC Open 2023"]
[Site "Budva"]
[Date "2023.11.12"]
[Round "2.8"]
[White "Draskovic, Luka"]
[Black "Veleshnja, Zino"]
[Result "1-0"]
[ECO "C00"]
[WhiteElo "2476"]
[BlackElo "2269"]
[Annotator "ChessBase"]
[PlyCount "117"]
[EventDate "2023.11.10"]
[EventType "team-tourn"]
[EventCountry "MNE"]
[SourceTitle "playchess.com"]
[Source "ChessBase"]
[SourceQuality "1"]
[WhiteTeam "Montenegro"]
[BlackTeam "Albania"]
[WhiteTeamCountry "MNE"]
[BlackTeamCountry "ALB"]
[TimeControl "40/5400+30:1800+30"]

1. Nf3 {[%emt 0:00:04]} Nf6 {[%emt 0:00:37]} 2. g3 {[%emt 0:00:17]} e6 {[%emt 0:02:15]} 3. Bg2 {[%emt 0:00:57]} d5 {[%emt 0:01:36]} 4. O-O {[%emt 0:01:04]} Be7 {[%emt 0:00:22]} 5. d3 {[%emt 0:03:25]} O-O {[%emt 0:00:14]} 6. Nbd2 {[%emt 0:00:05]} c5 {[%emt 0:05:17]} 7. e4 {[%emt 0:00:44]} Nc6 {[%emt 0:01:08]} 8. Re1 {[%emt 0:00:14]} b5 {[%emt 0:05:20]} 9. exd5 {[%emt 0:00:45]} exd5 {[%emt 0:07:02]} 10. d4 {[%emt 0:00:39]} Bf5 {[%emt 0:09:59]} 11. dxc5 {[%emt 0:02:38]} Bxc5 {[%emt 0:08:07]} 12. Nb3 {[%emt 0:00:30]} Bb6 {[%emt 0:06:14]} 13. Be3 {[%emt 0:08:40]} Rc8 {[%emt 0:02:54]} 14. c3 {[%emt 0:09:17]} b4 {[%emt 0:03:36]} 15. Nfd4 {[%emt 0:06:22]} Nxd4 {[%emt 0:04:18]} 16. Nxd4 {[%emt 0:00:30]} Bxd4 {[%emt 0:02:13]} 17. Qxd4 {[%emt 0:04:06]} bxc3 {[%emt 0:00:36]} 18. bxc3 {[%emt 0:00:07]} Be4 {[%emt 0:09:47]} 19. f3 {[%emt 0:03:49]} Bf5 {[%emt 0:03:46]} 20. Bf1 {[%emt 0:04:56]} Qa5 {[%emt 0:03:21]} 21. Qb4 {[%emt 0:02:07]} Qc7 {[%emt 0:01:16]} 22. Bd4 {[%emt 0:00:27]} Rfe8 {[%emt 0:05:02]} 23. Qa4 {[%emt 0:02:28]} Rxe1 {[%emt 0:02:35]} 24. Rxe1 {[%emt 0:00:14]} h5 {[%emt 0:01:02]} 25. Qa6 {[%emt 0:12:05]} Nd7 {[%emt 0:02:43]} 26. Qb5 {[%emt 0:02:31]} Nc5 {[%emt 0:02:34]} 27. Re8+ {[%emt 0:00:30]} Rxe8 {[%emt 0:00:44]} 28. Qxe8+ {[%emt 0:00:06]} Kh7 {[%emt 0:00:07]} 29. Qa8 {[%emt 0:01:18]} Na4 {[%emt 0:08:07]} 30. Qf8 {[%emt 0:05:50]} f6 {[%emt 0:00:34]} 31. Qe8 {[%emt 0:00:05]} Qd7 {[%emt 0:01:18]} 32. Qxh5+ {[%emt 0:00:16]} Kg8 {[%emt 0:00:03]} 33. Qh4 {[%emt 0:00:33]} Nb6 {[%emt 0:00:53]} 34. Qf4 {[%emt 0:02:16]} Kh7 {[%emt 0:01:04]} 35. g4 {[%emt 0:01:53]} Bg6 {[%emt 0:00:29]} 36. h4 {[%emt 0:00:31]} Nc4 {[%emt 0:00:32]} 37. h5 {[%emt 0:00:54]} Bc2 {[%emt 0:00:03]} 38. h6 {[%emt 0:00:59]} Qd6 {[%emt 0:01:04]} 39. Qxd6 {[%emt 0:00:14]} Nxd6 {[%emt 0:00:01]} 40. hxg7 {[%emt 0:00:08]} Ne8 {[%emt 0:00:31]} 41. Bb5 {[%emt 0:30:47]} Nxg7 {[%emt 0:01:35]} 42. Bxf6 {[%emt 0:00:00]} Ne6 {[%emt 0:00:06]} 43. Bd4 {[%emt 0:00:00]} a5 {[%emt 0:01:42]} 44. Kf2 {[%emt 0:00:00]} a4 {[%emt 0:00:21]} 45. Bc6 {[%emt 0:00:00]} Bb3 {[%emt 0:02:53]} 46. a3 {[%emt 0:00:00]} Nd8 {[%emt 0:01:26]} 47. Bb5 {[%emt 0:00:00]} Nb7 {[%emt 0:01:31]} 48. Bd3+ {[%emt 0:00:00]} Kg8 {[%emt 0:00:48]} 49. Ke3 {[%emt 0:00:00]} Nd6 {[%emt 0:00:23]} 50. Be5 {[%emt 0:00:00]} Nc4+ {[%emt 0:02:12]} 51. Bxc4 {[%emt 0:00:00]} Bxc4 {[%emt 0:00:05]} 52. f4 {[%emt 0:00:00]} Bb3 {[%emt 0:02:02]} 53. f5 {[%emt 0:00:00]} Bd1 {[%emt 0:01:07]} 54. Kf4 {[%emt 0:00:00]} Kh7 {[%emt 0:00:29]} 55. g5 {[%emt 0:00:00]} Bc2 {[%emt 0:00:20]} 56. Bd4 {[%emt 0:00:00]} Bd3 {[%emt 0:04:25]} 57. Ke5 {[%emt 0:00:00]} Kg8 {[%emt 0:00:55]} 58. Kf6 {[%emt 0:00:00]} Bb5 {[%emt 0:02:28]} 59. g6 {[%emt 0:00:00]} 1-0

[Event "ETCC Open 2023"]
[Site "Budva"]
[Date "2023.11.12"]
[Round "2.9"]
[White "Dragnev, Valentin"]
[Black "Carlsen, Magnus"]
[Result "1/2-1/2"]
[ECO "B30"]
[WhiteElo "2589"]
[BlackElo "2829"]
[Annotator "TA"]
[PlyCount "131"]
[EventDate "2023.11.10"]
[EventType "team-tourn"]
[EventCountry "MNE"]
[SourceTitle "playchess.com"]
[Source "ChessBase"]
[SourceQuality "1"]
[WhiteTeam "Austria"]
[BlackTeam "Norway"]
[WhiteTeamCountry "AUT"]
[BlackTeamCountry "NOR"]
[TimeControl "40/5400+30:1800+30"]

{[%evp 13,131,27,25,25,28,26,14,28,16,30,28,37,37,0,33,22,20,27,25,3,8,12,19,17,23,21,33,48,52,39,30,18,25,14,17,0,0,0,16,22,115,97,224,89,262,283,247,104,108,53,143,131,96,131,150,109,122,132,208,176,312,306,307,194,155,30,129,129,196,173,276,101,108,94,100,113,114,83,83,107,107,94,76,85,69,80,83,24,24,24,19,3,6,6,6,0,0,0,0,0,43,43,29,4,5,0,0,0,0,0,0,0,8,8,8,0,4,4,0,8]} 1. e4 {[%emt 0:00:08]} c5 {[%emt 0:01:00]} 2. Nf3 {[%emt 0:00:23]} Nc6 {[%emt 0:00:10]} 3. Bb5 {[%emt 0:00:54]} e6 {[%emt 0:00:13]} 4. O-O {[%emt 0:00:15]} Nge7 {[%emt 0:00:16]} 5. Re1 {[%emt 0:00:26]} Nd4 {[%emt 0:04:20]} 6. Nxd4 {[%emt 0:00:51]} cxd4 {[%emt 0:00:03]} 7. c3 {[%emt 0:00:14]} a6 {[%emt 0:00:41]} 8. Bf1 {[%emt 0:00:34] B30: Sicilian: 2...Nc6 3 Bb5, lines without ...g6.} Nc6 {[%emt 0:00:33]} 9. b4 $1 {[%emt 0:00:44][%mdl 4] Prevents Bc5 is recently more successful than 9.d3.} Be7 {[%emt 0:04:09]} 10. a4 {[%emt 0:01:30]} O-O {[%emt 0:02:14]} 11. Na3 {[%emt 0:00:58][%cal Bb1a3,Ba3c4,Bc4e3,Be3g4][%mdl 32]} dxc3 {[%emt 0:10:11]} 12. dxc3 {[%emt 0:01:04]} Bf6 {[%emt 0:00:22]} 13. Bb2 {[%emt 0:02:12] [#]} d6 $146 {[%emt 0:01:50]} ({Predecessor:} 13... d5 14. Qb3 dxe4 15. Nc4 Qc7 16. Rxe4 Bd7 17. a5 Rad8 18. Nb6 Be8 19. Rd1 Ne5 {0-1 Agmanov,Z (2425)-Fedorov,A (2532) Cheliabinsk Panchenko Memorial op-A 2021 (5)}) 14. Qb3 {[%emt 0:12:14]} Qc7 {[%emt 0:07:17]} 15. Rad1 {[%emt 0:04:32]} Rd8 {[%emt 0:03:37]} 16. Nc4 {[%emt 0:14:58]} b6 {[%emt 0:01:48]} 17. Ne3 {[%emt 0:06:42]} Bb7 {[%emt 0:03:33]} 18. Ng4 {[%emt 0:00:58]} Bg5 {[%emt 0:01:52]} 19. c4 {[%emt 0:01:01]} h5 {[%emt 0:01:10] [#]} 20. Qc3 $1 {[%emt 0:05:35][%csl Gb2][%cal Rc3g7]} f6 {[%emt 0:03:11] [#]} (20... e5 21. Ne3) 21. h4 $1 {[%emt 0:06:36]} Bxh4 {[%emt 0:00:51]} 22. Qh3 {[%emt 0:00:16] Hoping for Nh6+.} hxg4 {[%emt 0:02:55]} 23. Qxh4 {[%emt 0:00:48]} Nxb4 {[%emt 0:00:34]} 24. Re3 {[%emt 0:04:22]} (24. Qxg4 $5 {[%cal Rb2f6]} e5 25. Re3 $11) 24... e5 $1 {[%emt 0:02:44]} 25. Qxg4 {[%emt 0:00:49]} Bc8 {[%emt 0:00:48]} 26. Qh4 {[%emt 0:00:27][%mdl 1024] White has compensation.} Be6 {[%emt 0:06:56]} (26... g5 $1 $11 27. Qh6 Qg7 28. Qxg7+ Kxg7) 27. Rg3 $1 $16 {[%emt 0:01:22]} Rf8 {[%emt 0:01:13]} (27... Kf7 $16 28. Qh5+ (28. Qh7 Rg8 $11) 28... Kg8) 28. Bc1 {[%emt 0:03:27]} (28. Be2 $18 {has better winning chances.}) 28... Ra7 $2 {[%emt 0:04:39]} (28... Bxc4 $2 29. Bh6 (29. Rh3 Bxf1 30. Qh7+ Kf7 $16) 29... b5 30. Bxg7 Qxg7 31. Rxd6 $18) (28... Nc6 $16) 29. Be2 $1 $18 {[%emt 0:04:20] And now Bh5 would win.} Qd8 {[%emt 0:02:18]} 30. Rg6 {[%emt 0:08:38]} (30. f4 $18 {and White stays clearly on top.}) 30... Rd7 {[%emt 0:06:53]} 31. Kh2 {[%emt 0:02:25]} (31. Qg3 $16 Kh8 32. Kh2) 31... Rff7 {[%emt 0:02:47]} ({Better is} 31... Qc7 $14) 32. Rh1 $1 $16 {[%emt 0:02:23]} Kf8 {[%emt 0:00:59]} 33. Kg1 {[%emt 0:00:35]} Ke7 {[%emt 0:01:08]} 34. Qg3 $1 {[%emt 0:02:56]} Qg8 {[%emt 0:00:29]} 35. Be3 {[%emt 0:03:19]} Rb7 {[%emt 0:01:02]} (35... a5 $16) 36. f4 $1 $18 {[%emt 0:03:55] f5 would be deadly.} exf4 {[%emt 0:02:24]} (36... Kd8 {was worth a try.}) 37. Bxf4 {[%emt 0:00:01]} (37. Qxf4 Nc6 $11) 37... Rd7 {[%emt 0:00:10]} 38. Rh5 {[%emt 0:01:51] Threatens to win with a5.} Nc6 {[%emt 0:03:15]} 39. Qh4 {[%emt 0:00:43]} (39. a5 $1 $16 {[%cal Ra5b6]}) 39... Rd8 {[%emt 0:07:00]} (39... Qa8 $1 $11 {keeps the balance.}) 40. Qf2 $16 {[%emt 0:03:57]} Rb8 {[%emt 0:08:01] [#]} (40... Rc8 $16 {might work better.}) 41. a5 $1 $18 {[%emt 0:08:19][%mdl 576] Deflection} Nxa5 {[%emt 0:09:42]} (41... bxa5 $142 42. c5 Kd7) (41... Ne5 42. Bxe5) 42. Qd4 $2 {[%emt 0:03:13]} (42. Qg3 $18 Rd8 43. Bh6) 42... Qd8 $16 {[%emt 0:08:41] [#]} 43. Rh7 $1 {[%emt 0:00:25] White is much more active.} ({Weaker is} 43. Rh8 Nc6 44. Qd3 (44. Rxd8 $2 {perishes.} Nxd4 45. Rxb8 Nxe2+ 46. Kf2 Nxf4 $19) 44... Qc7 45. Rxb8 Qxb8 $17) 43... Nc6 {[%emt 0:00:40]} 44. Qd2 {[%emt 0:00:27]} Qc7 {[%emt 0:02:34] ...Rg8 is the strong threat.} 45. Rgxg7 {[%emt 0:00:35]} ({Reject} 45. Rhxg7 $6 Ne5 46. Bxe5 dxe5 $11) 45... Rbf8 {[%emt 0:01:09] Dodges Bxd6+} 46. Bh5 {[%emt 0:01:37][%mdl 64] Pin. The board is on fire. This pair of bishops is nice.} Nd8 {[%emt 0:00:18][%cal Of7g7]} 47. Bxf7 {[%emt 0:01:34]} (47. e5 {is more complex.} dxe5 48. Be3 Qd6 49. Bxf7 Rxf7 50. Qc1) 47... Rxf7 {[%emt 0:00:15]} 48. Be3 {[%emt 0:04:10]} Rxg7 {[%emt 0:00:19]} 49. Rxg7+ {[%emt 0:00:01]} Nf7 {[%emt 0:00:08]} 50. Qb4 {[%emt 0:04:20]} (50. Bd4 $16) 50... Qxc4 $11 {[%emt 0:00:50]} 51. Qxb6 {[%emt 0:01:14]} (51. Qxc4 {simplifies} Bxc4 52. Bxb6 Bd3 53. Rg4) 51... Qxe4 {[%emt 0:00:49]} 52. Rg8 {[%emt 0:01:48]} (52. Bf2 {keeps more tension.} Qd3 53. Be1 Qe2 54. Qf2) 52... Bd7 {[%emt 0:01:13]} (52... Qd3 {is interesting.} 53. Qd4 Qb1+ 54. Kf2 Qc2+) 53. Bf2 {[%emt 0:03:25]} Qd3 {[%emt 0:01:36]} 54. Rg3 {[%emt 0:01:39]} (54. Bh4 {looks sharper.} Qd1+ 55. Kh2 Qe2 56. Kh1) 54... Qd1+ {[%emt 0:00:08]} 55. Kh2 {[%emt 0:00:03]} Qh5+ {[%emt 0:03:08]} 56. Kg1 {[%emt 0:00:02]} Qb5 {[%emt 0:02:47]} 57. Qe3+ {[%emt 0:00:40]} Ne5 {[%emt 0:00:08]} 58. Rg7+ {[%emt 0:00:28]} Ke6 $1 {[%emt 0:00:05] The position is equal.} 59. Qh3+ {[%emt 0:01:36]} Kd5 {[%emt 0:00:46]} 60. Qh7 {[%emt 0:01:45] Against Qb1+} f5 {[%emt 0:02:09]} 61. Bg3 {[%emt 0:01:02] Strongly threatening Bxe5.} Ng4 {[%emt 0:04:26]} 62. Qg8+ {[%emt 0:00:27]} Be6 {[%emt 0:00:24]} 63. Qa8+ {[%emt 0:00:02]} Kd4 {[%emt 0:00:19]} 64. Qa7+ {[%emt 0:01:38]} (64. Bxd6 $2 Qb1#) 64... Kd3 {[%emt 0:01:20] ( -> ...Qb1+)} 65. Rb7 {[%emt 0:00:50]} Qc5+ {[%emt 0:02:37]} 66. Qxc5 {[%emt 0:00:33] White really could win this.   Weighted Error Value: White=0.20 (precise) /Black=0.21 (precise)} 1/2-1/2

[Event "ETCC Open 2023"]
[Site "Budva"]
[Date "2023.11.12"]
[Round "2.10"]
[White "Tari, Aryan"]
[Black "Ragger, Markus"]
[Result "1/2-1/2"]
[ECO "C42"]
[WhiteElo "2620"]
[BlackElo "2615"]
[Annotator "TA"]
[PlyCount "79"]
[EventDate "2023.11.10"]
[EventType "team-tourn"]
[EventCountry "MNE"]
[SourceTitle "playchess.com"]
[Source "ChessBase"]
[SourceQuality "1"]
[WhiteTeam "Norway"]
[BlackTeam "Austria"]
[WhiteTeamCountry "NOR"]
[BlackTeamCountry "AUT"]
[TimeControl "40/5400+30:1800+30"]

{[%evp 10,79,17,13,22,11,11,10,21,3,8,0,0,0,2,0,0,0,0,-22,-14,-22,0,-20,-17,-23,-16,-23,0,-25,-22,-20,-21,-28,-32,-25,-29,-26,-19,-23,-2,-3,-3,-8,-3,-27,-29,-33,-15,-84,-94,-250,-133,-127,-100,-107,-57,-69,-60,-112,-100,-103,-111,-99,-110,-80,-97,-91,0,-32,0,-90]} 1. e4 {[%emt 0:00:48]} e5 {[%emt 0:00:02]} 2. Nf3 {[%emt 0:00:05]} Nf6 {[%emt 0:00:05]} 3. Nxe5 {[%emt 0:03:10]} d6 {[%emt 0:02:21]} 4. Nf3 {[%emt 0:01:24]} Nxe4 {[%emt 0:00:13]} 5. d3 {[%emt 0:05:23]} Nf6 {[%emt 0:00:22]} 6. d4 {[%emt 0:00:08]} g6 {[%emt 0:00:21] C42: Petroff Defence: 3 Nxe5 and unusual White 3rd moves.} 7. Bb5+ {[%emt 0:00:21]} (7. Bg5 $5 {[%cal Rd1e2]} Bg7 8. Nc3 $11) 7... c6 {[%emt 0:03:41][%cal Bc7c6,Bc6c5][%mdl 32]} 8. Bd3 {[%emt 0:00:30]} Bg7 {[%emt 0:00:46]} 9. O-O {[%emt 0:00:10]} O-O {[%emt 0:00:08]} 10. h3 {[%emt 0:05:32]} c5 {[%emt 0:00:38]} 11. Nc3 {[%emt 0:14:27] 11.c3 is the recent fashion.} Nc6 {[%emt 0:00:49][%cal Bb8c6,Bc6e7,Be7f5][%mdl 32]} 12. Be3 {[%emt 0:03:56]} b6 {[%emt 0:00:19]} 13. Qd2 {[%emt 0:08:01]} Bb7 {[%emt 0:00:30] [#]} 14. Be2 $146 {[%emt 0:02:07]} ({Predecessor:} 14. Bh6 Ne7 15. Bxg7 Kxg7 16. Nh2 Qd7 17. Rfe1 a6 18. Ne4 Bxe4 19. Bxe4 d5 20. Bf3 c4 21. Qf4 {1-0 Erdos,V (2615)-Korpa,B (2511) HUN-chT 2122 2021 (2.1)}) 14... Ne7 {[%emt 0:14:47]} 15. Bg5 {[%emt 0:15:44]} Nf5 {[%emt 0:08:18]} (15... d5 $5 {[%cal Rf6e4]}) 16. dxc5 {[%emt 0:01:50]} dxc5 {[%emt 0:03:54]} 17. Rad1 {[%emt 0:00:36]} Qxd2 {[%emt 0:19:15]} 18. Rxd2 {[%emt 0:00:33]} Rfe8 {[%emt 0:05:46]} 19. Bb5 {[%emt 0:06:49]} Red8 {[%emt 0:02:39]} 20. Rfd1 {[%emt 0:05:07]} Rxd2 {[%emt 0:00:24]} 21. Nxd2 {[%emt 0:00:01]} Nd4 {[%emt 0:04:41]} 22. Bd3 {[%emt 0:00:20]} Ne6 {[%emt 0:03:10]} 23. Be3 {[%emt 0:00:30]} Rd8 {[%emt 0:02:05]} 24. Be2 {[%emt 0:04:50]} Nd4 {[%emt 0:07:57]} 25. Bxd4 {[%emt 0:01:30]} cxd4 {[%emt 0:02:05][%cal Bc5d4,Bd4d3,Bd3d2][%mdl 32]} 26. Nb3 {[%emt 0:01:27]} Nd5 {[%emt 0:02:05]} 27. Nb5 {[%emt 0:09:26][%cal Oe2f3]} Nf4 {[%emt 0:01:58][%csl LRe2,LRg2]} 28. Bf1 {[%emt 0:00:05]} Rd5 {[%emt 0:04:02][%cal Of4h3]} (28... Ne6 {simplifies} 29. Nxa7 Ra8 30. Nb5 Rxa2 31. N3xd4 Nxd4 32. Nxd4 Rxb2 33. c3 Bh6) 29. Re1 {[%emt 0:05:24]} (29. Bc4 $11 {keeps the balance.}) 29... d3 $1 $36 {[%emt 0:04:48][%mdl 2048] Keeping White busy.} 30. Re8+ {[%emt 0:00:01]} Bf8 {[%emt 0:00:03] A strong pair of Bishops.} 31. Nc3 {[%emt 0:01:53] [#]} d2 $1 {[%emt 0:01:25]} 32. Nd1 {[%emt 0:00:15]} Kg7 {[%emt 0:02:25]} (32... Rd6 $17 33. c3 Bc6) 33. Re3 $15 {[%emt 0:01:48]} a5 {[%emt 0:00:30] aiming for ...a4.} 34. g3 {[%emt 0:00:27] [#]} (34. a4 $15) 34... a4 $1 $17 {[%emt 0:01:08]} 35. gxf4 {[%emt 0:00:04]} axb3 {[%emt 0:00:04]} 36. Rxb3 {[%emt 0:00:22][%cal Of1g2]} Rd4 {[%emt 0:00:49][%cal Ob7e4] Strongly threatening ...Be4!} 37. Bg2 {[%emt 0:01:00] [#]} Ba6 {[%emt 0:00:28][%mdl 1024] Black has strong compensation.} 38. Bf1 {[%emt 0:00:00]} Bb7 {[%emt 0:00:36]} (38... Bc8 $17 {Hoping for ...Bf5.} 39. Kg2 Bb7+ 40. f3 Rxf4) 39. Bg2 $15 {[%emt 0:00:02]} Ba6 {[%emt 0:00:43]} ({Better is} 39... Bc8 $15 40. Rxb6 h5) 40. Bf1 {[%emt 0:00:27] Weighted Error Value: White=0.14 (very precise) /Black=0.13 (very precise)} 1/2-1/2

[Event "ETCC Open 2023"]
[Site "Budva"]
[Date "2023.11.12"]
[Round "2.11"]
[White "Horvath, Dominik"]
[Black "Amar, Elham"]
[Result "1/2-1/2"]
[ECO "B13"]
[WhiteElo "2549"]
[BlackElo "2584"]
[Annotator "TA"]
[PlyCount "71"]
[EventDate "2023.11.10"]
[EventType "team-tourn"]
[EventCountry "MNE"]
[SourceTitle "playchess.com"]
[Source "ChessBase"]
[SourceQuality "1"]
[WhiteTeam "Austria"]
[BlackTeam "Norway"]
[WhiteTeamCountry "AUT"]
[BlackTeamCountry "NOR"]
[TimeControl "40/5400+30:1800+30"]

{[%evp 13,71,-2,0,0,43,32,34,26,6,39,28,5,4,-12,29,35,30,30,104,104,104,98,89,92,102,103,100,92,667,663,648,168,162,144,162,160,156,61,75,0,158,48,83,87,108,110,97,89,86,62,72,59,55,51,54,41,128,0,0,0]} 1. e4 {[%emt 0:00:12]} c6 {[%emt 0:00:01]} 2. d4 {[%emt 0:00:48]} d5 {[%emt 0:00:06]} 3. exd5 {[%emt 0:00:05]} cxd5 {[%emt 0:00:04]} 4. c4 {[%emt 0:00:05]} Nf6 {[%emt 0:00:23]} 5. Nc3 {[%emt 0:00:05]} Nc6 {[%emt 0:00:16]} 6. Bg5 {[%emt 0:00:05]} dxc4 {[%emt 0:13:38]} 7. d5 {[%emt 0:00:19]} Ne5 {[%emt 0:05:16]} 8. Nf3 {[%emt 0:00:10] B13: Caro-Kann: Exchange Variation and Panov-Botvinnik Attack.} Qd6 {[%emt 0:27:09] [#]} 9. Bxc4 $146 {[%emt 0:31:05][%mdl 64] Decoy} ({Predecessor:} 9. Be2 Nxf3+ 10. Bxf3 g6 11. O-O Bg7 12. Qa4+ Bd7 13. Qxc4 O-O 14. Rfe1 Rac8 15. Qb3 b6 {½-½ Feher,G (2420)-Varga,P (2440) Budapest Mediflora 1995 (5)}) 9... Nxc4 {[%emt 0:00:21]} 10. Qa4+ {[%emt 0:00:03] White is slightly better.} Bd7 {[%emt 0:00:56]} 11. Qxc4 {[%emt 0:00:04]} Rc8 {[%emt 0:05:35]} 12. Qb3 {[%emt 0:00:39]} Qa6 {[%emt 0:04:08]} 13. Ne5 {[%emt 0:04:25]} h6 {[%emt 0:13:44]} (13... Bf5 $5 {[%cal Rh7h6]}) 14. Nxd7 {[%emt 0:07:29]} Nxd7 {[%emt 0:03:47]} 15. Be3 {[%emt 0:00:16]} Nc5 {[%emt 0:03:06]} (15... e5 $11) 16. Bxc5 $16 {[%emt 0:00:13]} Rxc5 {[%emt 0:00:06]} 17. O-O-O $1 {[%emt 0:07:37]} g6 {[%emt 0:00:07]} 18. Rhe1 $1 {[%emt 0:04:36] Hoping for Kb1.} Kd7 {[%emt 0:00:20]} 19. Re4 {[%emt 0:03:11] White is more active.} Bg7 {[%emt 0:01:57]} 20. Ra4 $1 {[%emt 0:01:55][%mdl 64] Skewer} Ra5 {[%emt 0:00:05][%mdl 8192]} (20... Qb6 $2 21. Rb4 Qa6 22. d6 $18 (22. Rxb7+ Kd6 $16)) (20... Qd6 $16) 21. Rxa5 $18 {[%emt 0:01:06]} Qxa5 {[%emt 0:00:03]} 22. Qxb7+ {[%emt 0:00:06]} (22. d6 $1 Qg5+ 23. Kb1 exd6 24. Ne4 (24. Qxf7+ Qe7 $16)) 22... Qc7 {[%emt 0:00:07] Black is weak on the light squares} 23. Qb5+ {[%emt 0:02:06]} (23. Qb4 Rb8 24. Qa4+ Kd8 $11) 23... Kd6 {[%emt 0:00:28]} 24. Qa6+ $1 {[%emt 0:00:16]} Qb6 {[%emt 0:01:47]} 25. Qa3+ {[%emt 0:05:10]} (25. Ne4+ $1 $16 Kc7 26. d6+ exd6 27. Qxb6+ axb6 28. Nxd6 (28. Rxd6 $2 Re8 $19)) 25... Qc5 $14 {[%emt 0:01:25]} 26. Qa6+ {[%emt 0:03:18]} ({White should play} 26. Qxc5+ $1 Kxc5 27. Ne4+ Kb6 28. g3) 26... Qb6 $1 $16 {[%emt 0:00:05]} 27. Qc4 {[%emt 0:08:01]} (27. Ne4+ $1 $16 Kc7 28. d6+ exd6 29. Qxb6+ axb6 30. Nxd6 (30. Rxd6 $2 Re8 $19)) 27... Rb8 {[%emt 0:02:56][%csl Gb8][%cal Rb6b2]} 28. Rd2 {[%emt 0:02:02]} Kd7 {[%emt 0:07:21] [#]} 29. d6 $1 {[%emt 0:04:42][%mdl 512] The board is on fire.} Bxc3 {[%emt 0:01:48]} 30. Qxc3 {[%emt 0:01:43] Strongly threatening dxe7+.} exd6 {[%emt 0:00:06][%mdl 4096] Endgame And now ...Rc8 would win. KQR-KQR} 31. Qh3+ {[%emt 0:03:24]} (31. Rc2 Re8 $11) 31... Ke7 {[%emt 0:01:42]} 32. Qxh6 {[%emt 0:02:56]} Qc6+ {[%emt 0:00:57]} 33. Kb1 {[%emt 0:04:37]} ({Reject} 33. Rc2 Qxg2 34. Qh4+ (34. Qf4 Qh1+ 35. Kd2 Qd5+ 36. Ke1 Qxa2 $15) 34... g5 35. Re2+ Kd7 $11) 33... Qxg2 {[%emt 0:04:03]} 34. Qh4+ {[%emt 0:00:23]} g5 {[%emt 0:01:38] [#]} (34... Kf8 $14) 35. Re2+ {[%emt 0:01:26]} (35. Qd4 $1 $16 {[%cal Rd4d6]} Kf8 36. f4 (36. Qxd6+ Kg7 $16) (36. Qh8+ Ke7 $16) 36... Qf1+ 37. Rd1) 35... Kd8 $11 {[%emt 0:00:15] ( -> ...Qf1+)} 36. Qe4 {[%emt 0:01:32] Blacks defense is rewarded with a draw.   Weighted Error Value: White=0.26 (precise) /Black=0.28 (precise)} 1/2-1/2

[Event "ETCC Open 2023"]
[Site "Budva"]
[Date "2023.11.12"]
[Round "2.12"]
[White "Hauge, Lars Oskar"]
[Black "Blohberger, Felix"]
[Result "0-1"]
[ECO "C67"]
[WhiteElo "2498"]
[BlackElo "2513"]
[Annotator "ChessBase"]
[PlyCount "86"]
[EventDate "2023.11.10"]
[EventType "team-tourn"]
[EventCountry "MNE"]
[SourceTitle "playchess.com"]
[Source "ChessBase"]
[SourceQuality "1"]
[WhiteTeam "Norway"]
[BlackTeam "Austria"]
[WhiteTeamCountry "NOR"]
[BlackTeamCountry "AUT"]
[TimeControl "40/5400+30:1800+30"]

1. e4 {[%emt 0:00:55]} e5 {[%emt 0:00:20]} 2. Nf3 {[%emt 0:00:07]} Nc6 {[%emt 0:00:14]} 3. Bb5 {[%emt 0:00:07]} Nf6 {[%emt 0:00:05]} 4. O-O {[%emt 0:00:52]} Nxe4 {[%emt 0:00:08]} 5. Re1 {[%emt 0:00:27]} Nd6 {[%emt 0:00:08]} 6. a4 {[%emt 0:00:09]} Be7 {[%emt 0:00:18]} 7. Nc3 {[%emt 0:00:16]} a6 {[%emt 0:00:06]} 8. Bf1 {[%emt 0:02:52]} e4 {[%emt 0:01:12]} 9. Nxe4 {[%emt 0:00:12]} Nxe4 {[%emt 0:00:08]} 10. Rxe4 {[%emt 0:00:04]} d5 {[%emt 0:00:28]} 11. Re1 {[%emt 0:00:05]} Bg4 {[%emt 0:01:43]} 12. h3 {[%emt 0:05:07]} Bh5 {[%emt 0:00:09]} 13. Be2 {[%emt 0:16:56]} O-O {[%emt 0:01:06]} 14. d4 {[%emt 0:01:31]} Re8 {[%emt 0:01:43]} 15. Ne5 {[%emt 0:00:49]} Bxe2 {[%emt 0:00:34]} 16. Rxe2 {[%emt 0:00:09]} Nxe5 {[%emt 0:00:56]} 17. dxe5 {[%emt 0:00:24]} Bf8 {[%emt 0:01:14]} 18. Qd3 {[%emt 0:01:15]} Qd7 {[%emt 0:00:29]} 19. b3 {[%emt 0:01:17]} b5 {[%emt 0:08:17]} 20. Bf4 {[%emt 0:03:41]} c5 {[%emt 0:26:42]} 21. axb5 {[%emt 0:07:43]} axb5 {[%emt 0:00:14]} 22. Rxa8 {[%emt 0:00:16]} Rxa8 {[%emt 0:00:11]} 23. Rd2 {[%emt 0:00:13]} d4 {[%emt 0:03:52]} 24. c3 {[%emt 0:11:41]} Ra3 {[%emt 0:22:17]} 25. cxd4 {[%emt 0:03:00]} c4 {[%emt 0:00:44]} 26. Qe4 {[%emt 0:00:07]} c3 {[%emt 0:04:10]} 27. Rc2 {[%emt 0:00:35]} Rxb3 {[%emt 0:00:27]} 28. Be3 {[%emt 0:07:43]} b4 {[%emt 0:05:40]} 29. d5 {[%emt 0:00:35]} Rb1+ {[%emt 0:02:32]} 30. Kh2 {[%emt 0:00:09]} Rd1 {[%emt 0:00:43]} 31. d6 {[%emt 0:01:38]} Qb5 {[%emt 0:03:24]} 32. Ra2 {[%emt 0:33:15]} Qd5 {[%emt 0:03:37]} 33. Qg4 {[%emt 0:01:45]} h5 {[%emt 0:04:02]} 34. Qxh5 {[%emt 0:00:26]} g6 {[%emt 0:02:31]} 35. Qg4 {[%emt 0:00:56]} Qxe5+ {[%emt 0:00:19]} 36. f4 {[%emt 0:00:27]} Qxe3 {[%emt 0:02:37]} 37. Qxd1 {[%emt 0:00:13]} Qxf4+ {[%emt 0:00:09]} 38. g3 {[%emt 0:01:00]} Qxd6 {[%emt 0:00:10]} 39. Qb1 {[%emt 0:00:29]} Qd5 {[%emt 0:01:03]} 40. Rc2 {[%emt 0:00:27]} b3 {[%emt 0:01:25]} 41. Rf2 {[%emt 0:30:02]} c2 {[%emt 0:34:06]} 42. Qa1 {[%emt 0:00:00]} Bg7 {[%emt 0:00:00]} 43. Qe1 {[%emt 0:00:00]} Bh6 {[%emt 0:00:00]} 0-1